[Event "Chessity Nationale Pupillendag 2019 - Groep G"]
[Site "Meppel, Netherlands"]
[Date "2019.06.29"]
[Round "4.2"]
[White "Terlouw, Wouter"]
[Black "Zecha, Oscar"]
[Result "1-0"]
[TimeControl "15 min + 10 sec"]
[WhiteElo "898"]
[BlackElo "802"]

1. d4 {[%clk 00:15:28]} {[%emt 00:00:02]} Nf6 {[%clk 00:15:28]} {[%emt
00:00:02]} 2. c4 {[%clk 00:15:36]} {[%emt 00:00:02]} e6 {[%clk 00:15:37]} 3.
Nc3 {[%clk 00:15:44]} {[%emt 00:00:02]} Bb4 {[%clk 00:15:45]} {[%emt 00:00:02]}
4. Nf3 {[%clk 00:15:51]} {[%emt 00:00:03]} c5 {[%clk 00:15:53]} {[%emt
00:00:03]} 5. a3 {[%clk 00:15:50]} {[%emt 00:00:10]} cxd4 {[%clk 00:15:58]}
{[%emt 00:00:05]} 6. Nxd4 {[%clk 00:15:44]} {[%emt 00:00:16]} Bxc3+ {[%clk
00:16:05]} {[%emt 00:00:04]} 7. bxc3 {[%clk 00:15:52]} {[%emt 00:00:02]} d5
{[%clk 00:16:11]} {[%emt 00:00:04]} 8. cxd5 {[%clk 00:15:56]} {[%emt 00:00:05]}
exd5 {[%clk 00:16:19]} {[%emt 00:00:02]} 9. Bg5 {[%clk 00:15:58]} {[%emt
00:00:08]} h6 {[%clk 00:16:20]} {[%emt 00:00:10]} 10. Bh4 {[%clk 00:16:03]}
{[%emt 00:00:04]} O-O {[%clk 00:16:27]} {[%emt 00:00:03]} 11. e3 {[%clk
00:16:12]} Nc6 {[%clk 00:16:26]} {[%emt 00:00:13]} 12. Bb5 {[%clk 00:16:19]}
{[%emt 00:00:03]} Nxd4 {[%clk 00:16:33]} {[%emt 00:00:03]} 13. cxd4 {[%emt
00:00:03]} a6 {[%clk 00:16:41]} 14. Ba4 {[%emt 00:00:05]} Bd7 {[%clk 00:16:46]}
15. O-O {[%emt 00:00:09]} Bxa4 {[%clk 00:16:51]} {[%emt 00:00:01]} 16. Qxa4
{[%emt 00:00:06]} Qd7 {[%emt 00:00:20]} 17. Qxd7 {[%clk 00:16:37]} {[%emt
00:00:04]} Nxd7 {[%clk 00:17:03]} {[%emt 00:00:03]} 18. Rab1 {[%clk 00:16:44]}
{[%emt 00:00:04]} b5 {[%emt 00:00:05]} 19. Be7 {[%clk 00:16:47]} {[%emt
00:00:05]} Rfe8 {[%clk 00:17:17]} {[%emt 00:00:04]} 20. Bc5 {[%clk 00:16:53]}
Nxc5 {[%clk 00:17:25]} {[%emt 00:00:06]} 21. dxc5 {[%emt 00:00:02]} Rac8 {[%emt
00:00:03]} 22. Rbc1 {[%emt 00:00:12]} Rc6 {[%clk 00:17:32]} {[%emt 00:00:01]}
23. Rfd1 {[%clk 00:17:12]} {[%emt 00:00:05]} Rd8 {[%clk 00:17:41]} {[%emt
00:00:02]} 24. e4 {[%clk 00:17:17]} {[%emt 00:00:04]} d4 {[%clk 00:17:50]}
{[%emt 00:00:02]} 25. h3 {[%clk 00:17:15]} {[%emt 00:00:11]} Rdc8 {[%clk
00:17:44]} {[%emt 00:00:16]} 26. Rxd4 {[%clk 00:17:23]} {[%emt 00:00:03]} Rxc5
{[%clk 00:17:52]} {[%emt 00:00:02]} 27. Rxc5 {[%clk 00:17:17]} {[%emt
00:00:16]} Rxc5 {[%clk 00:18:01]} {[%emt 00:00:02]} 28. Rd6 {[%clk 00:17:25]}
Re5 {[%clk 00:18:02]} {[%emt 00:00:11]} 29. Rxa6 {[%clk 00:17:28]} {[%emt
00:00:07]} Rxe4 {[%clk 00:18:10]} {[%emt 00:00:02]} 30. Rb6 {[%clk 00:17:37]}
Ra4 {[%clk 00:18:16]} {[%emt 00:00:05]} 31. Rxb5 {[%clk 00:17:44]} {[%emt
00:00:04]} Rxa3 {[%clk 00:18:24]} {[%emt 00:00:01]} 32. f4 {[%clk 00:17:52]}
{[%emt 00:00:02]} Ra4 {[%clk 00:18:31]} {[%emt 00:00:04]} 33. g3 {[%clk
00:17:58]} {[%emt 00:00:04]} Ra3 {[%clk 00:18:39]} {[%emt 00:00:02]} 34. Kf2
{[%clk 00:18:06]} Kf8 {[%clk 00:18:46]} {[%emt 00:00:04]} 35. Re5 {[%clk
00:18:14]} {[%emt 00:00:02]} f6 {[%clk 00:18:48]} {[%emt 00:00:08]} 36. Re3
{[%clk 00:18:21]} {[%emt 00:00:03]} Rxe3 {[%clk 00:18:55]} {[%emt 00:00:03]} 37.
Kxe3 {[%clk 00:18:30]} {[%emt 00:00:02]} Ke7 {[%clk 00:19:03]} {[%emt
00:00:02]} 38. Ke4 {[%clk 00:18:38]} {[%emt 00:00:01]} Ke6 {[%clk 00:19:09]}
{[%emt 00:00:04]} 39. f5+ {[%clk 00:18:46]} {[%emt 00:00:02]} Ke7 {[%clk
00:19:18]} {[%emt 00:00:02]} 40. Kd5 {[%clk 00:18:54]} {[%emt 00:00:02]} Kd7
{[%clk 00:19:25]} {[%emt 00:00:04]} 41. g4 {[%clk 00:18:59]} {[%emt 00:00:05]}
Ke7 {[%clk 00:19:32]} {[%emt 00:00:03]} 42. Kc6 {[%clk 00:19:07]} {[%emt
00:00:02]} Kf7 {[%clk 00:19:34]} {[%emt 00:00:08]} 43. Kd6 {[%clk 00:19:15]}
{[%emt 00:00:01]} g6 {[%clk 00:19:35]} {[%emt 00:00:09]} 44. Kd7 {[%emt
00:00:47]} h5 {[%clk 00:19:15]} {[%emt 00:00:04]} 45. gxh5 {[%clk 00:19:09]}
{[%emt 00:00:06]} gxh5 {[%clk 00:19:23]} {[%emt 00:00:02]} 46. h4 {[%clk
00:19:16]} {[%emt 00:00:03]} Kf8 {[%clk 00:19:20]} {[%emt 00:00:13]} 47. Ke6
{[%clk 00:19:25]} {[%emt 00:00:02]} Kg7 {[%clk 00:19:29]} {[%emt 00:00:01]} 48.
Ke7 {[%clk 00:19:34]} {[%emt 00:00:01]} Kg8 {[%clk 00:19:24]} {[%emt 00:00:15]}
49. Kxf6 {[%clk 00:19:42]} {[%emt 00:00:02]} Kf8 {[%clk 00:19:24]} {[%emt
00:00:11]} 50. Kg6 {[%clk 00:19:50]} {[%emt 00:00:01]} Ke7 {[%clk 00:19:27]}
{[%emt 00:00:07]} 51. Kg7 {[%clk 00:19:59]} {[%emt 00:00:01]} Kd6 {[%clk
00:19:21]} {[%emt 00:00:16]} 52. f6 {[%clk 00:20:07]} {[%emt 00:00:02]} Ke5
{[%clk 00:19:30]} 53. Kg6 {[%clk 00:20:12]} {[%emt 00:00:05]} Ke6 {[%clk
00:19:22]} {[%emt 00:00:19]} 54. f7 {[%clk 00:20:21]} {[%emt 00:00:01]} Ke5
{[%clk 00:19:06]} {[%emt 00:00:26]} 55. f8=Q {[%emt 00:00:04]} Ke6 {[%emt
00:00:04]} 56. Qf6+ {[%clk 00:20:19]} {[%emt 00:00:03]} Kd5 {[%clk 00:19:14]}
{[%emt 00:00:02]} 57. Qe7 {[%clk 00:20:27]} {[%emt 00:00:02]} Kd4 {[%clk
00:19:23]} {[%emt 00:00:01]} 58. Qe6 {[%clk 00:20:35]} {[%emt 00:00:02]} Kd3
{[%clk 00:19:32]} {[%emt 00:00:02]} 59. Qe5 {[%clk 00:20:44]} {[%emt 00:00:01]}
Kc4 {[%clk 00:19:36]} {[%emt 00:00:05]} 60. Kxh5 {[%clk 00:20:49]} {[%emt
00:00:05]} Kd3 {[%clk 00:19:44]} {[%emt 00:00:03]} 61. Qf4 {[%clk 00:20:56]}
{[%emt 00:00:03]} Kc3 {[%clk 00:19:48]} {[%emt 00:00:06]} 62. Qe4 {[%clk
00:21:04]} {[%emt 00:00:02]} Kb3 {[%clk 00:19:53]} {[%emt 00:00:06]} 63. Qd4
{[%clk 00:21:11]} {[%emt 00:00:01]} Ka3 {[%clk 00:20:00]} {[%emt 00:00:05]} 64.
Qb6 {[%clk 00:21:19]} {[%emt 00:00:02]} Ka4 {[%clk 00:20:07]} {[%emt 00:00:04]}
65. Kg4 {[%clk 00:21:27]} {[%emt 00:00:01]} Ka3 {[%clk 00:20:14]} {[%emt
00:00:03]} 66. h5 {[%clk 00:21:36]} Ka4 {[%clk 00:20:23]} {[%emt 00:00:01]} 67.
h6 {[%clk 00:21:45]} {[%emt 00:00:01]} Ka3 {[%clk 00:20:32]} {[%emt 00:00:01]}
68. h7 {[%clk 00:21:54]} Ka4 {[%clk 00:20:30]} {[%emt 00:00:12]} 69. h8=R
{[%clk 00:21:59]} {[%emt 00:00:04]} Ka3 {[%clk 00:20:38]} {[%emt 00:00:03]} 70.
Ra8# {[%clk 00:22:08]} 1-0

[Event "Chessity Nationale Pupillendag 2019 - Groep G"]
[Site "Meppel, Netherlands"]
[Date "2019.06.29"]
[Round "4.4"]
[White "Kumar, Prayan Sai"]
[Black "Barbier, Emma"]
[Result "1-0"]
[TimeControl "15 min + 10 sec"]
[WhiteElo "428"]
[BlackElo "633"]

1. e4 {[%clk 00:15:19]} {[%emt 00:00:10]} e5 {[%clk 00:15:15]} {[%emt
00:00:05]} 2. Nf3 {[%clk 00:15:26]} {[%emt 00:00:02]} Nc6 {[%clk 00:15:20]}
{[%emt 00:00:06]} 3. Nc3 {[%emt 00:00:08]} Nf6 {[%emt 00:00:03]} 4. Bc4 {[%clk
00:15:38]} {[%emt 00:00:02]} Be7 {[%emt 00:00:10]} 5. d3 {[%clk 00:15:42]}
{[%emt 00:00:03]} O-O {[%clk 00:15:28]} {[%emt 00:00:08]} 6. O-O {[%clk
00:15:20]} {[%emt 00:00:29]} d6 {[%clk 00:15:36]} {[%emt 00:00:06]} 7. Be3
{[%clk 00:15:21]} {[%emt 00:00:08]} Bg4 {[%clk 00:15:38]} {[%emt 00:00:08]} 8.
a3 {[%clk 00:15:26]} {[%emt 00:00:06]} h6 {[%clk 00:15:46]} {[%emt 00:00:02]} 9.
h3 {[%clk 00:15:32]} {[%emt 00:00:04]} Bh5 {[%clk 00:15:49]} {[%emt 00:00:07]}
10. Qd2 {[%clk 00:15:16]} {[%emt 00:00:26]} Qd7 {[%clk 00:15:56]} {[%emt
00:00:03]} 11. Qe2 {[%clk 00:15:07]} {[%emt 00:00:18]} a6 {[%clk 00:15:57]}
{[%emt 00:00:08]} 12. Rfe1 {[%clk 00:15:04]} {[%emt 00:00:13]} b5 {[%clk
00:16:05]} {[%emt 00:00:03]} 13. Ba2 {[%clk 00:15:06]} {[%emt 00:00:07]} Rab8
{[%clk 00:16:12]} {[%emt 00:00:03]} 14. Red1 {[%clk 00:14:22]} {[%emt
00:00:54]} b4 {[%clk 00:16:03]} {[%emt 00:00:16]} 15. axb4 {[%clk 00:14:30]}
{[%emt 00:00:04]} Nxb4 {[%clk 00:16:04]} {[%emt 00:00:09]} 16. Rd2 {[%clk
00:13:17]} {[%emt 00:01:24]} Nxa2 {[%clk 00:16:04]} {[%emt 00:00:09]} 17. Rxa2
{[%clk 00:13:21]} {[%emt 00:00:08]} Qc6 {[%clk 00:16:04]} {[%emt 00:00:18]} 18.
Ra1 {[%clk 00:13:21]} {[%emt 00:00:21]} d5 {[%clk 00:15:58]} {[%emt 00:00:16]}
19. exd5 {[%clk 00:13:14]} {[%emt 00:00:17]} Nxd5 20. Nxd5 {[%clk 00:13:14]}
Qxd5 {[%clk 00:15:38]} {[%emt 00:00:10]} 21. b3 {[%clk 00:12:58]} {[%emt
00:00:26]} Rb6 {[%clk 00:15:27]} {[%emt 00:00:20]} 22. Bxb6 {[%clk 00:13:01]}
{[%emt 00:00:08]} cxb6 {[%clk 00:15:33]} {[%emt 00:00:04]} 23. Qxe5 {[%clk
00:12:36]} {[%emt 00:00:35]} Qxe5 {[%clk 00:15:16]} {[%emt 00:00:28]} 24. Nxe5
{[%clk 00:12:44]} {[%emt 00:00:02]} Bf6 {[%clk 00:15:18]} {[%emt 00:00:08]} 25.
d4 {[%clk 00:12:36]} {[%emt 00:00:17]} Rd8 {[%clk 00:15:16]} {[%emt 00:00:10]}
26. c3 {[%clk 00:11:52]} {[%emt 00:00:57]} a5 {[%clk 00:15:21]} {[%emt
00:00:05]} 27. Nf3 {[%clk 00:11:57]} {[%emt 00:00:04]} Bxf3 {[%clk 00:15:02]}
{[%emt 00:00:28]} 28. gxf3 {[%clk 00:12:02]} {[%emt 00:00:07]} Rd5 {[%clk
00:15:05]} {[%emt 00:00:05]} 29. Re1 {[%clk 00:11:15]} {[%emt 00:00:58]} Rf5
{[%clk 00:15:09]} {[%emt 00:00:06]} 30. Kg2 {[%clk 00:11:18]} {[%emt 00:00:08]}
b5 {[%clk 00:15:09]} {[%emt 00:00:11]} 31. Re8+ {[%clk 00:11:16]} {[%emt
00:00:12]} Kh7 {[%clk 00:15:18]} 32. c4 {[%clk 00:11:15]} {[%emt 00:00:13]}
bxc4 {[%clk 00:15:20]} {[%emt 00:00:08]} 33. bxc4 {[%clk 00:11:23]} {[%emt
00:00:03]} a4 {[%clk 00:15:27]} {[%emt 00:00:03]} 34. Ra8 {[%clk 00:11:23]}
{[%emt 00:00:09]} Rg5+ {[%clk 00:15:27]} {[%emt 00:00:10]} 35. Kh2 {[%clk
00:11:25]} {[%emt 00:00:06]} Rf5 {[%clk 00:15:24]} {[%emt 00:00:14]} 36. Rxa4
{[%clk 00:11:23]} {[%emt 00:00:12]} Rxf3 {[%clk 00:15:28]} {[%emt 00:00:06]} 37.
d5 {[%clk 00:11:29]} {[%emt 00:00:04]} Be5+ {[%clk 00:15:24]} {[%emt 00:00:14]}
38. Kg2 {[%clk 00:11:33]} {[%emt 00:00:05]} Rf6 {[%clk 00:15:24]} {[%emt
00:00:08]} 39. c5 {[%clk 00:11:35]} {[%emt 00:00:10]} Rg6+ {[%emt 00:00:06]} 40.
Kf3 {[%clk 00:11:38]} {[%emt 00:00:05]} f6 {[%clk 00:15:27]} {[%emt 00:00:13]}
41. h4 {[%clk 00:11:37]} {[%emt 00:00:11]} Rg1 {[%clk 00:15:25]} {[%emt
00:00:13]} 42. d6 {[%clk 00:11:37]} {[%emt 00:00:11]} Rh1 {[%clk 00:15:31]}
{[%emt 00:00:03]} 43. d7 {[%clk 00:11:40]} {[%emt 00:00:07]} Rh3+ {[%clk
00:15:36]} {[%emt 00:00:04]} 44. Ke2 {[%clk 00:11:38]} {[%emt 00:00:10]} Bc7
{[%clk 00:15:34]} {[%emt 00:00:12]} 45. d8=Q Bxd8 46. Rxd8 {[%clk 00:11:40]}
{[%emt 00:00:03]} g5 {[%clk 00:15:31]} {[%emt 00:00:13]} 47. hxg5 {[%clk
00:11:49]} {[%emt 00:00:03]} fxg5 {[%clk 00:15:38]} {[%emt 00:00:02]} 48. c6
{[%clk 00:11:56]} {[%emt 00:00:03]} Rc3 {[%clk 00:15:42]} {[%emt 00:00:05]} 49.
Ra6 {[%clk 00:12:00]} {[%emt 00:00:07]} Rc4 {[%clk 00:15:48]} {[%emt 00:00:03]}
50. Rd7+ {[%clk 00:12:07]} {[%emt 00:00:04]} Re4+ {[%clk 00:15:54]} {[%emt
00:00:03]} 51. Kd3+ {[%clk 00:12:15]} {[%emt 00:00:03]} Re8 {[%clk 00:16:00]}
{[%emt 00:00:04]} 52. c7+ {[%clk 00:12:22]} {[%emt 00:00:03]} Rc8 {[%clk
00:16:08]} {[%emt 00:00:02]} 53. Rc6+ {[%clk 00:12:29]} {[%emt 00:00:03]} Kg8
{[%clk 00:15:49]} {[%emt 00:00:04]} 54. Ra6 {[%clk 00:12:32]} Re8 {[%clk
00:15:49]} {[%emt 00:00:41]} 1-0

[Event "Chessity Nationale Pupillendag 2019 - Groep G"]
[Site "Meppel, Netherlands"]
[Date "2019.06.29"]
[Round "4.5"]
[White "Ziedses des Plantes, Art G"]
[Black "Jilesen, Pim"]
[Result "1-0"]
[TimeControl "15 min + 10 sec"]
[WhiteElo "597"]
[BlackElo "434"]

1. e4 {[%clk 00:15:18]} e5 {[%clk 00:15:20]} {[%emt 00:00:01]} 2. Nf3 {[%clk
00:15:27]} Nc6 {[%clk 00:15:29]} {[%emt 00:00:01]} 3. Nc3 {[%clk 00:15:33]}
{[%emt 00:00:03]} Nf6 {[%clk 00:15:38]} {[%emt 00:00:02]} 4. Bc4 {[%clk
00:15:41]} {[%emt 00:00:03]} Bb4 {[%clk 00:15:45]} {[%emt 00:00:03]} 5. Ng5
{[%clk 00:15:38]} {[%emt 00:00:12]} O-O {[%clk 00:15:51]} {[%emt 00:00:04]} 6.
O-O {[%clk 00:15:36]} {[%emt 00:00:12]} Bxc3 {[%clk 00:15:43]} {[%emt
00:00:18]} 7. bxc3 {[%clk 00:15:44]} {[%emt 00:00:02]} d5 {[%clk 00:15:47]}
{[%emt 00:00:07]} 8. exd5 {[%clk 00:15:52]} {[%emt 00:00:02]} Nxd5 {[%clk
00:15:54]} {[%emt 00:00:02]} 9. Nf3 {[%clk 00:15:28]} {[%emt 00:00:33]} Bg4
{[%clk 00:15:47]} {[%emt 00:00:18]} 10. h3 {[%clk 00:15:21]} {[%emt 00:00:17]}
Bh5 {[%clk 00:15:52]} {[%emt 00:00:06]} 11. Re1 {[%emt 00:00:21]} Re8 {[%emt
00:00:07]} 12. d4 {[%clk 00:14:25]} {[%emt 00:00:39]} exd4 {[%clk 00:15:58]}
{[%emt 00:00:04]} 13. Rxe8+ {[%clk 00:14:28]} {[%emt 00:00:06]} Qxe8 {[%clk
00:16:04]} {[%emt 00:00:04]} 14. Bxd5 {[%clk 00:14:22]} {[%emt 00:00:16]} dxc3
{[%clk 00:16:01]} {[%emt 00:00:15]} 15. Bxc6 {[%clk 00:13:59]} {[%emt
00:01:25]} bxc6 {[%clk 00:16:08]} {[%emt 00:00:03]} 16. Qd3 {[%clk 00:13:48]}
{[%emt 00:00:20]} Bxf3 {[%clk 00:16:10]} {[%emt 00:00:08]} 17. Qxf3 {[%clk
00:13:35]} {[%emt 00:00:23]} Qe1+ {[%clk 00:16:14]} {[%emt 00:00:06]} 18. Kh2
{[%clk 00:13:40]} {[%emt 00:00:05]} Rd8 {[%clk 00:16:18]} {[%emt 00:00:05]} 19.
Qxc6 {[%clk 00:13:32]} {[%emt 00:00:18]} Rd1 {[%clk 00:16:16]} {[%emt
00:00:12]} 20. Qa8+ {[%emt 00:00:11]} Rd8 {[%emt 00:00:09]} 21. Qxd8+ {[%clk
00:13:19]} {[%emt 00:00:03]} Qe8 {[%emt 00:00:02]} 22. Qxe8# {[%emt 00:00:05]}
1-0

[Event "Chessity Nationale Pupillendag 2019 - Groep G"]
[Site "Meppel, Netherlands"]
[Date "2019.06.29"]
[Round "5.1"]
[White "Huang, Luna"]
[Black "Terlouw, Wouter"]
[Result "0-1"]
[TimeControl "15 min + 10 sec"]
[WhiteElo "955"]
[BlackElo "898"]

1. e4 {[%clk 00:15:18]} {[%emt 00:00:02]} c5 {[%clk 00:15:19]} 2. Nf3 {[%clk
00:15:25]} {[%emt 00:00:03]} Nc6 {[%clk 00:15:27]} {[%emt 00:00:02]} 3. d4
{[%clk 00:15:34]} {[%emt 00:00:01]} cxd4 {[%clk 00:15:35]} {[%emt 00:00:02]} 4.
Nxd4 {[%clk 00:15:42]} {[%emt 00:00:02]} g6 {[%clk 00:15:44]} {[%emt 00:00:02]}
5. Nxc6 {[%clk 00:15:44]} {[%emt 00:00:08]} bxc6 {[%clk 00:15:52]} {[%emt
00:00:01]} 6. Be3 {[%clk 00:15:38]} {[%emt 00:00:17]} Bg7 {[%clk 00:15:55]}
{[%emt 00:00:05]} 7. c3 {[%clk 00:14:42]} {[%emt 00:01:07]} Nf6 {[%clk
00:16:00]} {[%emt 00:00:05]} 8. Nd2 {[%clk 00:14:48]} {[%emt 00:00:04]} O-O
{[%clk 00:16:05]} {[%emt 00:00:04]} 9. Qc2 {[%clk 00:14:35]} {[%emt 00:00:24]}
d6 {[%clk 00:16:06]} {[%emt 00:00:09]} 10. f3 {[%clk 00:13:41]} {[%emt
00:01:04]} e6 {[%clk 00:16:09]} {[%emt 00:00:06]} 11. Be2 {[%clk 00:12:33]}
{[%emt 00:01:18]} d5 {[%clk 00:16:08]} {[%emt 00:00:10]} 12. h4 {[%clk
00:10:45]} {[%emt 00:01:59]} Nd7 {[%clk 00:15:30]} {[%emt 00:00:48]} 13. g4
{[%clk 00:10:22]} {[%emt 00:00:32]} Qf6 {[%clk 00:14:42]} {[%emt 00:00:57]} 14.
g5 {[%clk 00:07:39]} {[%emt 00:02:55]} Qe7 {[%clk 00:14:48]} {[%emt 00:00:03]}
15. h5 {[%clk 00:07:14]} {[%emt 00:00:36]} f6 {[%clk 00:14:36]} {[%emt
00:00:22]} 16. h6 {[%clk 00:07:00]} {[%emt 00:00:25]} Bh8 {[%clk 00:14:43]}
{[%emt 00:00:03]} 17. Rg1 {[%clk 00:07:03]} {[%emt 00:00:07]} fxg5 {[%clk
00:14:42]} {[%emt 00:00:10]} 18. Bxg5 {[%clk 00:07:06]} {[%emt 00:00:07]} Bf6
{[%clk 00:14:44]} {[%emt 00:00:07]} 19. Bxf6 {[%clk 00:06:49]} {[%emt
00:00:28]} Qxf6 {[%clk 00:14:48]} {[%emt 00:00:05]} 20. O-O-O {[%clk 00:06:46]}
{[%emt 00:00:14]} e5 {[%clk 00:14:16]} {[%emt 00:00:42]} 21. Rdf1 {[%clk
00:06:41]} {[%emt 00:00:16]} Qh4 {[%clk 00:14:10]} {[%emt 00:00:16]} 22. Rh1
{[%clk 00:06:35]} {[%emt 00:00:16]} Qf4 {[%clk 00:14:06]} {[%emt 00:00:14]} 23.
Kb1 {[%clk 00:06:10]} {[%emt 00:00:35]} Nf6 {[%clk 00:13:37]} {[%emt 00:00:39]}
24. exd5 {[%clk 00:05:44]} {[%emt 00:00:37]} Nxd5 {[%clk 00:13:23]} {[%emt
00:00:23]} 25. Rfg1 {[%clk 00:05:36]} {[%emt 00:00:18]} Bf5 {[%clk 00:13:20]}
{[%emt 00:00:13]} 26. Ne4 {[%clk 00:05:09]} {[%emt 00:00:37]} Ne3 {[%clk
00:13:03]} {[%emt 00:00:26]} 27. Qd3 {[%clk 00:05:09]} {[%emt 00:00:11]} Rad8
{[%clk 00:12:53]} {[%emt 00:00:19]} 28. Qa6 {[%clk 00:04:56]} {[%emt 00:00:23]}
Bxe4+ {[%clk 00:12:56]} {[%emt 00:00:07]} 29. fxe4 Qxe4+ {[%clk 00:13:03]} 30.
Ka1 {[%clk 00:04:46]} {[%emt 00:00:17]} Nc2+ {[%clk 00:13:04]} {[%emt
00:00:09]} 31. Kb1 {[%clk 00:04:41]} {[%emt 00:00:16]} Na3+ {[%clk 00:13:12]}
{[%emt 00:00:01]} 32. Ka1 {[%clk 00:04:31]} {[%emt 00:00:20]} Qb1+ {[%clk
00:13:16]} {[%emt 00:00:05]} 33. Rxb1 {[%clk 00:04:25]} {[%emt 00:00:17]} Nc2#
{[%clk 00:13:25]} {[%emt 00:00:01]} 0-1

[Event "Chessity Nationale Pupillendag 2019 - Groep G"]
[Site "Meppel, Netherlands"]
[Date "2019.06.29"]
[Round "5.2"]
[White "Zecha, Oscar"]
[Black "Syaf, Choky"]
[Result "1-0"]
[TimeControl "15 min + 10 sec"]
[WhiteElo "802"]
[BlackElo "511"]

1. d4 {[%clk 00:15:19]} {[%emt 00:17:12]} d5 {[%clk 00:14:38]} {[%emt
00:00:42]} 2. c4 {[%clk 00:15:26]} {[%emt 00:00:03]} dxc4 {[%clk 00:14:46]}
{[%emt 00:00:03]} 3. e3 {[%clk 00:15:34]} {[%emt 00:00:01]} Nc6 {[%clk
00:14:51]} {[%emt 00:00:04]} 4. Bxc4 {[%clk 00:15:42]} {[%emt 00:00:02]} Nf6
{[%clk 00:14:57]} {[%emt 00:00:05]} 5. Nf3 {[%clk 00:15:48]} {[%emt 00:00:04]}
e6 {[%clk 00:15:05]} {[%emt 00:00:01]} 6. Nc3 {[%clk 00:15:55]} {[%emt
00:00:02]} Bd6 {[%clk 00:15:13]} {[%emt 00:00:02]} 7. Bd2 {[%clk 00:16:03]}
{[%emt 00:00:02]} O-O {[%clk 00:15:21]} {[%emt 00:00:02]} 8. O-O {[%clk
00:16:10]} {[%emt 00:00:03]} Qd7 {[%clk 00:15:27]} {[%emt 00:00:04]} 9. Re1
{[%clk 00:16:13]} {[%emt 00:00:06]} e5 {[%clk 00:15:25]} {[%emt 00:00:13]} 10.
dxe5 {[%clk 00:16:19]} {[%emt 00:00:04]} Bxe5 {[%clk 00:15:33]} {[%emt
00:00:02]} 11. Nxe5 {[%clk 00:16:25]} {[%emt 00:00:04]} Nxe5 {[%clk 00:15:42]}
{[%emt 00:00:02]} 12. Bb3 {[%clk 00:16:23]} {[%emt 00:00:12]} Qd8 {[%clk
00:15:46]} {[%emt 00:00:06]} 13. Qc2 {[%clk 00:16:20]} {[%emt 00:00:12]} Qe7
{[%clk 00:15:51]} {[%emt 00:00:05]} 14. Rad1 {[%clk 00:16:25]} {[%emt
00:00:05]} Be6 {[%clk 00:16:00]} {[%emt 00:00:01]} 15. Bxe6 {[%clk 00:16:24]}
{[%emt 00:00:11]} Qxe6 {[%clk 00:16:08]} {[%emt 00:00:02]} 16. a3 {[%clk
00:15:45]} Nc6 {[%clk 00:16:15]} {[%emt 00:00:53]} 17. e4 {[%emt 00:00:31]} Ng4
{[%clk 00:16:15]} {[%emt 00:00:03]} 18. h3 {[%clk 00:15:14]} {[%emt 00:00:27]}
Nd4 {[%clk 00:16:23]} {[%emt 00:00:02]} 19. Qb1 {[%clk 00:14:27]} {[%emt
00:00:56]} Nf6 {[%clk 00:16:29]} {[%emt 00:00:03]} 20. Bg5 {[%clk 00:14:22]}
{[%emt 00:00:16]} h6 {[%clk 00:16:37]} {[%emt 00:00:03]} 21. Bxf6 {[%clk
00:14:27]} {[%emt 00:00:05]} Qxf6 {[%clk 00:16:45]} {[%emt 00:00:02]} 22. Nd5
{[%clk 00:14:24]} {[%emt 00:00:14]} Qe5 {[%clk 00:16:43]} {[%emt 00:00:10]} 23.
f4 {[%clk 00:14:07]} {[%emt 00:00:28]} Qd6 {[%clk 00:16:24]} {[%emt 00:00:28]}
24. Rxd4 {[%clk 00:14:09]} {[%emt 00:00:08]} c6 {[%clk 00:16:33]} {[%emt
00:00:03]} 25. e5 {[%clk 00:14:04]} {[%emt 00:00:15]} Qc5 {[%clk 00:16:27]}
{[%emt 00:00:11]} 26. Red1 {[%clk 00:13:14]} {[%emt 00:01:03]} cxd5 {[%clk
00:16:32]} {[%emt 00:00:05]} 27. Kh2 {[%clk 00:13:03]} {[%emt 00:00:21]} a5
{[%clk 00:16:29]} {[%emt 00:00:13]} 28. Rxd5 {[%clk 00:13:07]} {[%emt
00:00:06]} Qb6 {[%clk 00:16:22]} {[%emt 00:00:18]} 29. Rd7 {[%clk 00:12:30]}
{[%emt 00:00:47]} Rad8 {[%clk 00:16:22]} {[%emt 00:00:09]} 30. Rxd8 {[%clk
00:12:37]} {[%emt 00:00:02]} Rxd8 {[%clk 00:16:30]} {[%emt 00:00:02]} 31. Rxd8+
{[%clk 00:12:27]} {[%emt 00:00:20]} Qxd8 {[%clk 00:16:39]} {[%emt 00:00:01]} 32.
Qe4 {[%clk 00:12:31]} {[%emt 00:00:06]} b5 {[%clk 00:16:40]} {[%emt 00:00:09]}
33. Qb7 {[%clk 00:12:26]} {[%emt 00:00:16]} b4 {[%clk 00:16:46]} {[%emt
00:00:04]} 34. axb4 {[%clk 00:12:34]} {[%emt 00:00:02]} axb4 {[%clk 00:16:54]}
{[%emt 00:00:02]} 35. Qxb4 {[%clk 00:12:41]} {[%emt 00:00:03]} Qh4 {[%clk
00:16:50]} {[%emt 00:00:14]} 36. Qd4 {[%clk 00:12:21]} {[%emt 00:00:30]} Kh7
{[%clk 00:16:58]} {[%emt 00:00:02]} 37. b4 {[%clk 00:12:27]} {[%emt 00:00:04]}
Kg8 {[%clk 00:17:05]} {[%emt 00:00:02]} 38. b5 {[%clk 00:12:36]} {[%emt
00:00:02]} Qe7 {[%clk 00:17:13]} {[%emt 00:00:02]} 39. Qd6 {[%clk 00:12:37]}
{[%emt 00:00:09]} Qe8 {[%clk 00:17:08]} {[%emt 00:00:10]} 40. b6 {[%clk
00:12:45]} {[%emt 00:00:08]} Qb5 {[%clk 00:17:10]} {[%emt 00:00:06]} 41. Qc7
{[%clk 00:12:40]} {[%emt 00:00:16]} Qe8 {[%clk 00:16:46]} {[%emt 00:00:34]} 42.
b7 {[%clk 00:12:46]} {[%emt 00:00:04]} Kh7 {[%clk 00:16:51]} {[%emt 00:00:05]}
43. b8=Q {[%clk 00:12:52]} {[%emt 00:00:03]} Qxb8 {[%clk 00:16:59]} {[%emt
00:00:03]} 44. Qxb8 {[%clk 00:13:01]} {[%emt 00:00:01]} f6 {[%clk 00:16:58]}
{[%emt 00:00:11]} 45. exf6 {[%clk 00:13:06]} {[%emt 00:00:05]} gxf6 {[%clk
00:17:07]} {[%emt 00:00:02]} 46. f5 {[%clk 00:13:08]} {[%emt 00:00:07]} Kg7
{[%clk 00:17:13]} {[%emt 00:00:03]} 47. Qc7+ {[%clk 00:13:17]} {[%emt
00:00:02]} Kg8 {[%clk 00:17:21]} {[%emt 00:00:01]} 48. Qe7 {[%clk 00:13:08]}
{[%emt 00:00:19]} Kh8 {[%clk 00:17:29]} {[%emt 00:00:02]} 49. Qxf6+ {[%clk
00:13:16]} {[%emt 00:00:02]} Kh7 {[%clk 00:17:36]} {[%emt 00:00:03]} 50. Qe7+
{[%clk 00:13:15]} {[%emt 00:00:12]} Kg8 {[%clk 00:17:40]} {[%emt 00:00:06]} 51.
f6 {[%clk 00:13:23]} {[%emt 00:00:02]} Kh8 {[%clk 00:17:48]} {[%emt 00:00:01]}
52. f7 {[%clk 00:13:30]} {[%emt 00:00:03]} Kh7 {[%clk 00:17:56]} {[%emt
00:00:02]} 53. f8=Q+ {[%clk 00:13:38]} {[%emt 00:00:02]} Kg6 {[%clk 00:18:03]}
{[%emt 00:00:02]} 54. Qff6+ {[%clk 00:13:45]} {[%emt 00:00:04]} Kh5 {[%clk
00:18:19]} {[%emt 00:00:05]} 55. g4# {[%emt 00:00:02]} 1-0